{"text_format":"1","workbook":"xlsx","n_sheets":2,"sheets":["Formulario","bd"],"not_rendered":{"charts":0,"images":1,"macros":1,"external_links":0,"defined_names":36,"comments":0,"pivot_tables":0},"unopened":[],"bounds":{"document_bytes":16777216,"sheet_cells":100000,"rows_first":2000,"rows_last":500,"rows_between":2000,"halvings":0,"cell_chars":16384,"cell_head_chars":4096},"cells_cut":0,"cells_raw":0,"read":"whole","date_system":"1900"}

{"sheet":"Formulario","index":0,"n_rows":128,"n_cols":18,"rows_kept":128,"cut":false,"hidden":false,"merged":[[90,0,90,3],[123,1,123,7],[124,1,124,7],[3,10,4,10],[1,10,2,10],[13,10,20,10],[1,0,1,8],[116,10,118,10],[7,10,8,10],[9,10,10,10],[35,10,42,10],[101,10,111,10],[113,2,113,6],[114,3,114,4],[114,7,114,8],[114,5,114,6],[22,10,33,10],[44,10,56,10],[58,10,78,10],[80,10,99,10],[98,3,98,4],[91,0,91,3],[88,0,88,3],[87,5,87,7],[74,3,74,6],[82,0,82,3],[85,0,85,3],[86,0,86,3],[127,2,127,4],[107,5,107,6],[106,5,106,6],[126,6,126,7],[127,6,127,7],[116,1,116,7],[120,1,120,7],[119,1,119,7],[121,1,121,7],[122,1,122,7],[108,4,108,5],[109,4,109,5],[110,4,110,5],[111,4,111,5],[108,0,108,1],[109,0,109,1],[110,0,110,1],[111,0,111,1],[108,2,108,3],[109,2,109,3],[90,5,90,7],[91,5,91,7],[126,2,126,4],[118,1,118,7],[65,0,65,3],[59,5,59,7],[60,5,60,7],[61,5,61,7],[62,5,62,7],[95,5,95,7],[96,5,96,7],[81,0,81,3],[94,2,94,8],[78,2,78,3],[78,4,78,5],[63,0,63,3],[64,0,64,3],[64,5,64,7],[63,5,63,7],[72,0,72,2],[73,0,73,2],[72,3,72,6],[73,3,73,6],[74,0,74,2],[97,7,97,8],[93,0,93,8],[95,2,95,4],[95,0,95,1],[96,0,96,1],[92,2,92,4],[92,0,92,1],[92,5,92,6],[92,7,92,8],[76,0,76,1],[77,0,77,1],[89,5,89,7],[81,5,81,7],[82,5,82,7],[78,0,78,1],[79,0,79,8],[80,0,80,3],[84,0,84,3],[87,0,87,3],[83,0,83,3],[80,5,80,7],[89,2,89,3],[83,5,83,7],[19,5,19,6],[19,7,19,8],[19,0,19,1],[19,2,19,4],[16,6,16,8],[17,0,17,1],[17,3,17,4],[17,6,17,7],[16,2,16,3],[16,4,16,5],[24,6,24,8],[23,2,23,5],[24,2,24,5],[25,0,25,3],[22,6,22,7],[23,0,23,1],[20,0,20,1],[20,3,20,4],[22,0,22,1],[22,2,22,5],[21,0,21,8],[7,2,7,3],[8,2,8,3],[9,0,9,2],[10,0,10,2],[2,0,2,5],[2,6,2,7],[3,6,3,7],[5,0,5,1],[6,0,6,1],[5,2,5,3],[6,2,6,3],[4,0,4,8],[6,4,6,6],[5,4,5,6],[7,4,7,5],[8,4,8,5],[10,4,10,5],[7,0,7,1],[8,0,8,1],[3,0,3,3],[3,4,3,5],[12,0,12,8],[15,2,15,3],[9,4,9,5],[18,0,18,1],[18,2,18,4],[18,5,18,6],[18,7,18,8],[28,3,28,4],[28,6,28,8],[26,0,26,3],[25,4,25,6],[26,4,26,6],[15,0,15,1],[16,0,16,1],[15,4,15,5],[13,6,13,8],[14,7,14,8],[13,1,13,4],[11,0,11,1],[11,2,11,4],[11,6,11,8],[15,6,15,8],[24,0,24,1],[23,6,23,8],[35,0,35,3],[36,0,36,3],[29,0,29,3],[27,3,27,4],[27,6,27,8],[35,4,35,5],[36,4,36,5],[34,0,34,8],[30,0,30,1],[30,2,30,4],[30,6,30,8],[32,0,32,3],[33,0,33,3],[32,4,32,6],[33,4,33,6],[29,5,29,6],[29,7,29,8],[39,0,39,3],[39,4,39,5],[40,0,40,3],[40,4,40,5],[41,0,41,3],[41,4,41,5],[41,7,41,8],[37,0,37,3],[38,0,38,3],[37,4,37,5],[38,4,38,5],[37,7,37,8],[38,7,38,8],[51,0,51,1],[42,0,42,3],[42,4,42,5],[42,7,42,8],[46,0,46,1],[46,2,46,3],[46,4,46,6],[44,0,44,1],[44,2,44,3],[44,4,44,6],[45,0,45,1],[45,2,45,3],[45,4,45,6],[43,0,43,8],[59,0,59,3],[60,0,60,3],[61,0,61,3],[69,5,69,7],[70,5,70,7],[56,0,56,3],[47,2,47,3],[47,4,47,6],[52,3,52,4],[52,6,52,8],[53,3,53,4],[53,6,53,8],[49,4,49,5],[50,4,50,5],[48,0,48,1],[56,4,56,6],[49,0,49,3],[50,0,50,3],[48,2,48,3],[48,5,48,6],[55,0,55,3],[55,4,55,6],[51,2,51,4],[51,6,51,8],[104,0,104,1],[104,2,104,3],[110,2,110,3],[111,2,111,3],[103,0,103,1],[84,5,84,7],[85,5,85,7],[88,5,88,7],[57,0,57,8],[71,0,71,8],[75,0,75,8],[65,5,65,7],[66,5,66,7],[67,5,67,7],[68,5,68,7],[76,2,76,3],[77,2,77,3],[76,4,76,5],[77,4,77,5],[66,0,66,3],[67,0,67,3],[58,0,58,4],[58,5,58,8],[62,0,62,3],[117,1,117,7],[112,10,114,10],[103,2,103,3],[98,0,98,2],[97,5,97,6],[68,0,68,3],[69,0,69,3],[70,0,70,3],[112,0,112,8],[113,0,113,1],[99,3,99,4],[99,0,99,1],[98,6,98,7],[99,6,99,7],[94,0,94,1],[107,0,107,2],[105,0,105,1],[105,2,105,3],[106,0,106,2],[102,0,102,1],[102,2,102,3],[101,0,101,1],[101,2,101,3],[100,0,100,8]]}
[null,null,null,null,null,null,null,null,null,null,"NOTAS Y OBSERVACIONES SOBRE EL FORMULARIO"]
["SOLICITUD DE ANALISIS DE CAPACIDAD DE PAGO",null,null,null,null,null,null,null,null,null,"Para facilitar el llenado de datos en el formulario, permita que se pueda ejecutar macros y \npresione el botón de la derecha. Con ello, al presionar \"Enter\", el desplazamiento de las celdas \nserá hacia la derecha. Al final del formulario podrá retornar al desplazamiento regular hacia abajo."]
[null,null,null,null,null,null,"Lugar",null,"Fecha"]
[null,null,null,null,null,null,null,null,null,null,"Los campos resaltados en rojo (como el fondo de esta celda) son obligatorios\nTome en cuenta las observaciones, muy especialmente las que constan en letra roja"]
["DATOS PERSONALES DEL SOLICITANTE"]
["Apellido paterno",null,"Apellido materno",null,"Nombres"]
[null,null,null,null,null,null,null,"Fecha nacimiento",null,null,"Favor ingresar sus nombres tal y como están en su cédula o pasaporte, según corresponda."]
["Tipo de identificación",null,null,null,"Lugar de nacimiento",null,null,"Edad",{"$f":"IF(ISBLANK(I7),\"\",YEAR(TODAY())-YEAR(I7))","v":""}]
["Número de identificación",null,null,null,"Nacionalidad",null,null,"Género"]
["¿Tiene acuerdo de separación de bienes?",null,null,null,"Tiempo de residencia en el país",null,null,"Estado civil",null,null,{"$f":"IF(AND(OR(I10=bd!Q3,I10=bd!Q5,I10=bd!Q6),OR(D10<>\"\",D11<>\"\",I11<>\"\")),\"Si no está casado o en unión libre, no debe llenar la información de separación de bienes, sociedad conyugal disuelta o tiempo de unión libre\",\"\")","v":""}]
["¿Tiene disuelta la sociedad conyugal?",null,null,null,"Número de miembros en la familia",null,null,"Tiempo de unión libre"]
["Nivel de estudios",null,null,null,null,"Profesión"]
["DATOS DE RESIDENCIA DEL SOLICITANTE"]
["Calle principal:",null,null,null,null,"Calle secundaria",null,null,null,null,"Si está interesado(a) solamente en conocer su capacidad de pago y/o endeudamiento y obtener su precalificación de crédito hipotecario, no requiere llenar esta información.\n\nSi requiere los servicios de Analitikacorp S.A. para ayudarle a conseguir financiamiento y gestionar su crédito hipotecario, debe llenar esta sección con información real y verificable. Active la casilla correspondiente en la parte inferior del formulario y se habilitará el ingreso de esta información."]
["Número",null,"Departamento:",null,"Piso:",null,"Referencia:"]
["Provincia",null,"Cantón",null,"Ciudad",null,"Sector / barrio"]
[]
["Tiempo de residencia (años)",null,null,"Teléfono de residencia",null,null,"Teléfono celular personal"]
["Correo electrónico personal",null,null,null,null,"Situación de la vivienda"]
["Tipo de vivienda",null,null,null,null,"Vivienda otros - especifique"]
["Avalúo de la vivienda",null,null,"Valor del arriendo"]
["DATOS LABORALES DEL SOLICITANTE",null,null,null,null,null,null,null,null,null,null,null,null,null,null,null," "]
["Relación laboral",null,null,null,null,null,"RUC / RISE (si tiene)",null,null,null,"Podremos requerir la presentación de información de sustento, la misma que deberá ser enviada junto con el formulario lleno (pueden ser documentos electrónicos o escaneos), ver sección de ingresos y gastos mensuales.",null,{"$f":"IF(AND(I23<>0,I23<>(C9*1000+1)),\"RUC inconsistente\",\"\")","v":""},null,null,null," "]
["Origen de ingresos",null,"Actividad económica principal",null,null,null,"Actividad económica secundaria",null,null,null,null,null,null,"",null,null," "]
[null,null,null,null,null,null,null,null,null,null,null,null,null,null,null,null," "]
["Nombre de la empresa en la que trabaja o negocio propio",null,null,null,"Cargo que desempeña",null,null,"Fecha de ingreso",null,null,null,null,null,null,null,null," "]
[null,null,null,null,null,null,null,"Teléfono del trabajo",null,null,null,null,null,null,null,null," "]
["Dirección del trabajo ",null,"Ciudad",null,null,"Calle principal"]
["Número",null,"Sector / barrio",null,null,"Calle secundaria"]
["Tiempo de existencia de la empresa en la que trabaja (años)",null,null,null,null,"Antigüedad en el trabajo actual",null,null,null,null,null,null,null,null,null,null," "]
["Persona de contacto",null,null,null,null,"Email de contacto",null,null,null,null,null,null,null,null,null,null," "]
["Información del trabajo anterior (si la antigüedad en el trabajo actual es inferior a 2 años y si ha tenido un trabajo anterior)",null,null,null,null,null,null,null,null,null,null,null,null,null,null,null," "]
["Nombre de la empresa en la que trabajaba",null,null,null,"Último cargo desempeñado en el trabajo anterior",null,null,"Fecha de ingreso",null,null,null,null,null,null,null,null," "]
[null,null,null,null,null,null,null,"Fecha de salida",null,null,null,null,null,null,null,null," "]
["REFERENCIAS FAMILIARES (Hasta tercer grado de consanguinidad)",null,null,null,null,null,null,null,null,null,null,null,null,null,null,null," "," "]
["Nombre de un pariente que no viva con usted",null,null,null,"Parentesco",null,"Provincia","Ciudad","Sector / barrio",null,"Si está interesado(a) solamente en conocer su capacidad de pago y/o endeudamiento, no requiere llenar esta información.\n\nSi requiere la asesoría de Analitikacorp S.A. para ayudarle a conseguir financiamiento, debe llenar esta sección con información real y verificable.  Active la casilla correspondiente en la parte inferior del formulario y se habilitará el ingreso de esta información.\n\nSolamente si no tiene familiares en el Ecuador registre a familiares que vivan en otros países.",null,null,null,null,null," "," "]
[null,null,null,null,null,null,null,null,null,null,null,null,null,null,null,null," "," "]
["Dirección",null,null,null,"País de residencia",null,"Email"]
[null,null,null,null,null,null,"Teléfono"]
["Nombre de un pariente que no viva con usted",null,null,null,"Parentesco",null,"Provincia","Ciudad","Sector / barrio"]
[]
["Dirección",null,null,null,"País de residencia",null,"Email"]
[null,null,null,null,null,null,"Teléfono"]
["DATOS DEL CONYUGE"]
["Apellido paterno",null,"Apellido materno",null,"Nombres",null,null,"Fecha nacimiento",null,null,"Favor ingresar los nombres tal y como están en la cédula o pasaporte, según  corresponda.\n\nPodrá requerirse la presentación de información de sustento, ver sección de ingresos y gastos mensuales.\n",null,{"$f":"YEAR(TODAY())-YEAR(I45)","v":117}]
[null,null,null,null,null,null,null,"Nacionalidad"]
["Tipo de identificación y número",null,"Lugar de nacimiento",null,"Correo electrónico personal",null,null,"Género"]
[null,null,null,null,null,null,null,"Teléfono celular"]
["Origen de ingresos:",null,null,null,"Relación laboral",null,null,"RUC / RISE (si tiene)",null,null,null,null,{"$f":"IF(AND(I49<>0,I49<>(B48*1000+1)),\"RUC inconsistente\",\"\")","v":""}]
["Nombre de la empresa en la que trabaja o negocio propio",null,null,null,"Cargo que desempeña",null,"Antigüedad","Fecha de ingreso"]
[null,null,null,null,null,null,null,"Teléfono del trabajo"]
["Actividad económica del negocio",null,null,null,null,"Productos"]
["Dirección del trabajo ",null,"Ciudad",null,null,"Calle principal"]
["Número",null,"Sector / barrio",null,null,"Calle secundaria"]
["Información del trabajo anterior (si la antigüedad en el trabajo actual es inferior a 2 años y si ha tenido un trabajo anterior)"]
["Nombre de la empresa en la que trabajaba",null,null,null,"Último cargo desempeñado en el trabajo anterior",null,null,"Fecha de ingreso",null,null,null,null,null,null,null,null," "]
[null,null,null,null,null,null,null,"Fecha de salida",null,null,null,null,null,null,null,null," "]
["ESTADO DE SITUACION FINANCIERA PERSONAL"]
["ACTIVOS",null,null,null,null,"PASIVOS Y PATRIMONIO",null,null,null,null,"Si está interesado(a) solamente en conocer su capacidad de pago y/o endeudamiento, no requiere llenar esta información.\n\nSi requiere la asesoría de Analitikacorp S.A. para ayudarle a conseguir financiamiento, debe llenar esta sección con información real y verificable.  Active la casilla correspondiente en la parte inferior del formulario y se habilitará el ingreso de esta información.\n\nEsta información es necesaria para analizar su situación patrimonial y las garantías que pueda tener para sustentar una operación de crédito. Favor llenar los campos que correspondan con datos lo más precisos posible.\n\nLlenar todos los campos resaltados en rojo, en caso de que alguno no aplique a su caso, no dejarlo en blanco, ingresar un cero (0), incluyendo las celdas correspondientes a descripción de bienes inmuebles y clase de vehículos.\n\nPara aplicar a un crédito se requerirá sustentar los bienes declarados presentando documentos como copias del pago de impuesto predial o número de predio (para el caso de bienes inmuebles) y copias de matrículas (para el caso de vehículos)."]
["Descripción",null,null,null,"Monto","Descripción",null,null,"Monto"]
["Efectivo y depósitos bancarios",null,null,null,null,"Deudas bancarias"]
["Inversiones (pólizas, depósitos a plazo, etc.)",null,null,null,null,"Deudas por tarjetas de crédito"]
["Letras o documentos por cobrar",null,null,null,null,"Deudas hipotecarias"]
["Mercaderías (al pecio de costo actual)",null,null,null,null,"Deudas a proveedores"]
["Acciones",null,null,null,null,"Cuentas por pagar"]
["Bienes inmuebles (detalle se ingresa en la tabla de abajo)",null,null,null,{"$f":"H74+H75","v":0},"Otras deudas"]
["Maquinarias (valor comercial)",null,null,null,null,"TOTAL PASIVOS",null,null,{"$f":"SUM(I61:I66)","v":0}]
["Vehículos  (detalle se ingresa en la tabla de abajo)",null,null,null,{"$f":"SUM(H78:H79)","v":0}]
["Muebles y enseres",null,null,null,null,"PATRIMONIO",null,null,{"$f":"E71-I67","v":0}]
["Otros activos"]
["TOTAL ACTIVOS",null,null,null,{"$f":"SUM(E61:E70)","v":0},"CONTINGENTES  (garantías vigentes)"]
["BIENES INMUEBLES DE SU PROPIEDAD (casa, terreno, departamento)"]
["Breve descripción",null,null,"Ubicación",null,null,null,"Valor comercial","¿Hipotecado?"]
[]
[]
["VEHICULOS DE SU PROPIEDAD"]
["Clase",null,"Marca",null,"Modelo",null,"Año","Valor comercial","¿Prendado?"]
[]
[]
["DETALLE DE INGRESOS Y GASTOS MENSUALES"]
["INGRESOS",null,null,null,"Monto","EGRESOS",null,null,"Monto",null,"El detalle de ingresos y gastos mensuales es información fundamental para realizar el cálculo de su capacidad de pago y endeudamiento. Favor llenar esta información con datos lo más precisos posible. No deje en blanco ningún campo resaltado en rojo, si algún dato no corresponde a su situación, coloque un cero (0).\n\nPara un análisis y cálculo más preciso se recomienda presentar información de sustento:\n* Si trabaja en relación de dependencia laboral: certificado laboral firmado por su empleador, o roles de pago de los últimos 3 meses firmados por el empleador, o mecanizado del IESS.\n* Si declara ingresos por rentas: contrato de arriendo legalizado o facturas emitidas.\n* Si declara ingresos por pensión jubilar, inversiones, remesas u otros ingresos: documentos que sustenten dichos ingresos.\n* Si tiene actividad independiente y es obligado a llevar contabilidad: declaraciones de IVA de los últimos 6 meses.\n* Si tiene actividad independiente y no es obligado a llevar contabilidad: declaración de Impuesto a la Renta del año anterior, declaraciones de IVA de los últimos 6 meses y copias de estados de cuenta bancarios.\nFavor enviar los documentos que apliquen junto con el formulario (pueden ser escaneos u otros documentos electrónicos).\n* Si con la información presentada no puede determinarse su nivel de ingresos, podrá requerírsele documentación adicional."]
["Ingresos fijos (sólo para dependientes)",null,null,null,null,"Gastos familiares (alimentos, estudios, servicios básicos,  etc.)"]
["Ingresos variables (sólo para dependientes)",null,null,null,null,"Pago de arriendo"]
["Ventas (sólo para independientes)",null,null,null,null,"Gastos financieros (préstamos)"]
["Ingresos por honorarios (sólo para profesionales independientes)",null,null,null,null,"Gastos financieros (tarjetas de crédito)"]
["Ingresos del cónyuge",null,null,null,null,"Otros egresos (especifique abajo)"]
["Ingresos por rentas",null,null,null,null,"Si tiene un negocio propio:"]
["Pensión jubilar",null,null,null,null,"Costos y gastos de producción y ventas"]
["Ingresos financieros (por inversiones)",null,null,null,null,"Costos y gastos administrativos"]
["Remesas recibidas (país de origen)",null,null,null,null,"Pago de sueldos y salarios a empleados y trabajadores"]
["Otros ingresos (especifique abajo)",null,null,null,null,"TOTAL DE EGRESOS",null,null,{"$f":"SUM(I82:I90)","v":0}]
["TOTAL DE INGRESOS",null,null,null,{"$f":"SUM(E82:E91)","v":0},"INGRESOS NETOS",null,null,{"$f":"E92-I91","v":0}]
["Origen de los otros ingresos",null,null,null,null,"Destino de los otros egresos"]
["INFORMACION DEL NEGOCIO PROPIO"]
["Principales productos o servicios"]
["Tipo de sociedad del negocio",null,null,null,null,"Porcentaje de participación del solicitante en el negocio"]
["Número de empleados ",null,null,"El local es:",null,"Conforme sus ingresos mensuales, su actividad comercial es"]
[null,null,null,null,null,"Temporada de mayor movimiento"]
["Perspectivas de crecimiento en ventas",null,null,"N° clientes promedio mensuales",null,null,"Utilidad neta mensual promedio (dólares)"]
["Ventas del año anterior",null,null,"Ventas del año actual",null,null,"Ventas estimadas próximo año"]
["REFERENCIAS BANCARIAS Y COMERCIALES"]
["Nombre de la institución",null,"Número de cuenta",null,"Tipo de cuenta","Fecha apertura","La cuenta es de","Ha obtenido crédito?","Monto",null,"Si está interesado(a) solamente en recibir su reporte de precalificación de  crédito hipotecario , no requiere llenar esta información.\n\nSi requiere la asesoría de Analitikacorp S.A. para ayudarle a conseguir financiamiento, debe llenar esta sección con información real y verificable.  Active la casilla correspondiente en la parte inferior del formulario y se habilitará el ingreso de esta información. Debe llenar esta sección con información real y verificable."]
[]
[]
[]
[]
["Casa comercial",null,null,"Año","Teléfono","Casa comercial",null,"Año","Teléfono"]
[]
["N° de tarjeta de Crédito vigente",null,"Marca",null,"Banco emisor",null,"Titular de la tarjeta","Cupo asignado","Fecha emisión"]
[]
[]
[]
["INFORMACION DEL CREDITO REQUERIDO",null,null,null,null,null,null,null,null,null,"Si está interesado en acceder a un crédito debe indicar el destino del mismo (qué desea adquirir o en qué requiere utilizar el monto de crédito), ingresar información estimada sobre el monto requerido y el plazo estimado para el crédito (en meses)."]
["Destino del crédito",null,null,null,null,null,null,"Plazo (meses)"]
["Valor total del bien a adquirir",null,null,null,null,"Monto disponible como entrada",null,null,null,10000]
[]
[null,"DECLARACION DE INFORMACION CONSIGNADA Y AUTORIZACION DE ACCESO A INFORMACION EXTERNA.- Declaro(amos) que los datos consignados en el presente formulario son verídicos y autorizo(amos) en forma expresa a ANALITIKACORP S.A. a solicitar confirmación de los mismos, en cualquier fuente de información, incluidos los Burós de Crédito. De igual forma autorizo(amos) a referir y/o publicar información crediticia a mi(nuestro) nombre en los Buros de Crédito legalmente autorizados por la Superintendencia de Bancos.\n",null,null,null,null,null,null,null,null,"Para que AnalitikaCorp pueda revisar su información personal, requerimos su autorización por lo que deberá imprimir el formulario lleno y firmarlo. Si está casado o en unión libre, su cónyuge o pareja también deberá firmarlo.\n\nEl formulario físico impreso y firmado deberá ser enviado a las oficinas de Analitikacorp S.A. Consulte con su asesor o contáctenos a nuestro correo electrónico para proporcionarle instrucciones del envío.\n\nEl formulario electrónico (Archivo de Excel lleno) deberá ser enviado al correo electrónico analisis@analitikacorp.com. Recomendamos incluir los documentos de sustento indicados arriba en formato electrónico (escaneos u otros documentos electrónicos). Para enviar el correo, haga clic sobre el siguiente enlace:"]
[]
[null,"CONFIDENCIALIDAD.- La información registrada en este formulario será utilizada por ANALITIKACORP S.A. exclusivamente para fines de analizar la capacidad de pago del solicitante, brindarle asesoría y planificación financiera y elaborar reportes de capacidad de pago. Ciertos datos podrán ser usados de forma anónima para fines estadísticos exclusivamente. "]
[null,null,null,null,null,null,null,null,null,null,"analisis@analitikacorp.com",null,false]
[null,"Autorizo(amos) expresa e irrevocablemente a ANALITIKACORP S.A. o a quien sea en el futuro el cesionario, beneficiario o acreedor del crédito solicitado o del documento o título cambiario que lo respalde, para que obtenga cuantas veces sean necesarias, de cualquier fuente de información, incluidos los burós de crédito, mi(nuestra) información de riesgos crediticios, de igual forma, ANALITIKACORP S.A. o quien sea en el futuro el cesionario, beneficiario o acreedor del crédito solicitado o del documento o título cambiario que lo respalde, queda expresamente autorizado para que pueda transferir o entregar dicha información a los burós de crédito y/o a la Central de Riesgos si fuere pertinente para utilizar, transferir o entregar dicha información a los burós de información crediticia autorizados para operar en el país, Autoridades Competentes y Organismos de Control, así como a otras instituciones o personas jurídicas legal o reglamentariamente facultadas si fuere pertinente."]
[null,"En caso de endoso, cesión, transferencia, titularización o cualquier otra forma de transferencia de dicha operación crediticia, contingente y/o cualquier otro compromiso crediticio que mantenga(mos), sea como deudor principal, codeudor o garante, la persona natural o jurídica cesionaria o adquiriente de dicha obligación queda desde ya expresamente facultada para realizar las mismas actividades establecidas en los párrafos precedentes.",null,null,null,null,null,null,null,null,"Para retornar al desplazamiento de las celdas hacia abajo luego \nde presionar \"Enter\", presione el siguiente botón:"]
[null,"DECLARACION DE LICITUD DE FONDOS.- Declaro(amos) que todos los fondos que se reciban de la Institución Financiera que apruebe la operación crediticia no serán destinados a ninguna actividad ilícita, especialmente a aquellas relacionadas con el Lavado de Activos."]
[null,"Autorizo(amos) a la Institución Financiera con la que se procese la solicitud de crédito a realizar el análisis que considere pertinente e informar documentadamente a las autoridades competentes en caso de investigación y/o determinación de transacciones económicas inusuales e injustificadas."]
[null,"Me(nos) comprometo(emos) ante la Institución Financiera a notificar oportunamente cualquier cambio importante respecto a los datos y declaraciones constantes en esta solicitud y eximo(imos) de toda responsabilidad a la Institución Financiera en caso de no hacerlo.\"        "]
[]
[null,"Nombre:",{"$f":"E7&\" \"&A7&\" \"&C7","v":"  "},null,null,"Nombre:",{"$f":"IF(ISBLANK(A46),\"\",E46&\"  \"&A46&\" \"&C46)","v":""}]
[null,"CC/Pasaporte:",{"$f":"C9","v":0},null,null,"CC/Pasaporte:",{"$f":"IF(ISBLANK(B48),\"\",B48)","v":""}]

{"sheet":"bd","index":1,"n_rows":12,"n_cols":247,"rows_kept":12,"cut":false,"hidden":true,"merged":[]}
["Campo","Persona o empresa que lo refiere","Lugar","Fecha","Solicitante - Apellido paterno","Solicitante - Apellido materno","Solicitante - Nombres","Solicitante - Tipo de identificación","Solicitante - Lugar de nacimiento","Solicitante - Fecha de nacimiento","Solicitante - Número de identificación","Solicitante - Nacionalidad","Solicitante - Edad","Separación de bienes","Solicitante - Género","Tiempo de residencia","Solicitante - Estado civil","Tiene disuelta la sociedad conyugal","Solicitante - Número miembros familia","Tiempo unión libre","Nivel de estudios","Profesión","Residencia - Calle principal","Residencia - ","Residencia - número","Residencia - departamento","Residencia - piso","Residencia - referencia","Residencia - Provincia","Residencia - Cantón","Residencia - Ciudad","Residencia - Sector / barrio","Tiempo de residencia en años","Teléfono de residencia","Teléfono celular","Correo electrónico","Situación de la vivienda","Tipo de vivienda","Vivienda otros - especifique","Avalúo de la vivienda","Teléfono del dueño de la vivienda","Valor del arriendo","Solicitante - relación laboral","Solicitante - RUC / RISE Número","Solicitante - Origen de ingresos","Solicitante - Actividad económica principal","Solicitante - Actividad económica secundaria","Solicitante - Fecha ingreso trabajo actual","Solicitante - Nombre de la empresa en la que trabaja","Solicitante - Cargo trabajo actual","Solicitante - teléfono trabajo","Trabajo-ciudad","Trabajo-calle principal","Trabajo-número dirección","Trabajo-sector","Trabajo-calle secundaria","tiempo existencia trabajo actual","Solicitante - antigüedad en el trabajo","Solicitante - nombre contacto trabajo","Solicitante - email contacto trabajo","Solicitante - trabajo anterior fecha ingreso","Solicitante - trabajo anterior empresa","Solicitante - trabajo anterior correo cargo","Solicitante - trabajo anterior fecha salida","Pariente 1 que no viva con usted","Pariente 1 parentesco","Pariente 1 provincia","Pariente 1 ciudad","Pariente 1 sector / barrio","Pariente 1 email","Pariente 1 dirección","Pariente 1 país","Pariente 1 teléfono","Pariente 2 que no viva con usted","Pariente 2 parentezco","Pariente 2 provincia","Pariente 2 ciudad","Pariente 2 sector / barrio","Pariente 2 email","Pariente 2 dirección","Pariente 2 país","Pariente 2 teléfono","Cónyuge - fecha nacimiento","Cónyuge - Apellido paterno","Cónyuge - Apellido materno","Cónyuge - Nombres","Cónyuge - Nacionalidad","Cónyuge - Género","Cónyuge - Tipo de identificación","Cónyuge - Número de identificación","Cónyuge - Lugar de nacimiento","Cónyuge - email","Cónyuge - celular","Cónyuge - Origen de ingresos","Cónyuge - relación laboral","Cónyuge - RUC / RISE Número","Cónyuge - Fecha de ingreso","Cónyuge - Nombre de la empresa en la que trabaja","Cónyuge - Cargo","Cónyuge - antigüedad en el trabajo","Cónyuge - teléfono trabajo","Cónyuge - actividad económica","Cónyuge - productos negocio propio","Cónyuge -ciudad trabajo","Cónyuge - trabajo calle principal","Cónyuge - trabajo dirección numero","Cónyuge - trabajo sector","Cónyuge - trabajo calle secundaria","Cónyuge - fecha ingreso trabajo anterior","Cónyuge - trabajo anterior","Cónyuge - cargo trabajo anterior","Cónyuge - fecha salida trabajo anterior","Efectivo y depósitos bancarios","Inversiones","Documentos por cobrar","Mercaderías","Acciones","Bienes inmuebles (total)","Maquinarias","Vehículos (total)","Muebles y eneseres","Otros activos","Total activos","Deudas bancarias","Deudas por tarjetas de crédito","Deudas hipotecarias","Deudas a proveedores","Cuentas por pagar","Otras deudas","Total pasivos","Patrimonio","Contingentes","Inmueble 1 descripción","Inmueble 1 ubicación","Inmueble 1 valor comercial","Inmueble 1 hipotecado","Inmueble 2 descripción","Inmueble 2 ubicación","Inmueble 2 valor comercial","Inmueble 2 hipotecado","Vehículo 1 clase","Vehículo 1 marca","Vehículo 1 modelo","Vehículo 1 año","Vehículo 1 valor comercial","Vehículo 1 prendado","Vehículo 2 clase","Vehículo 2 marca","Vehículo 2 modelo","Vehículo 2 año","Vehículo 2 valor comercial","Vehículo 2 prendado","Ingresos fijos - dependientes","Ingresos variables - dependientes","Ventas - independientes","Ingresos por honorarios - independientes","Ingresos conyuge","Ingresos por rentas","Pensión jubilar","Ingresos financieros","Remesas País","Remesas recibidas","Otros ingresos","Total ingresos","Otros ingresos especifique","Gastos familiares","Pago de arriendo","Gastos financieros (préstamos)","Gastos financieros (tarjetas de crédito)","Otros egresos","Costos y gastos de producción y ventas","Costos y gastos administrativos","Sueldos y salarios","Total egresos","Ingresos netos","Otros egresos especifique","Principales productos","Tipo de sociedad","Porcentaje de participación","No empleados","Tipo local","Ciclicidad actividad comercial","Rotación de mercadería","Temporada mayor movimiento","Clientes mensuales","Utilidad mensual","Ventas año anterior","Ventas año actual","Ventas próximo año","Banco 1 banco","Banco 1 numero cuenta","Banco 1 tipo","Banco 1 fecha apertura cuenta","Cuenta 1 es de","Banco 1 ha obtenido créditos","Banco 1 Monto US$","Banco 2 banco","Banco 2 numero cuenta","Banco 2 tipo","Banco 2 fecha apertura cuenta","Cuenta 2 es de","Banco 2 ha obtenido créditos","Banco 2 Monto US$","Banco 3 banco","Banco 3 numero cuenta","Banco 3 tipo","Banco 3 fecha apertura cuenta","Cuenta 3 es de","Banco 3 ha obtenido créditos","Banco 3 Monto US$","Banco 4 banco","Banco 4 numero cuenta","Banco 4 tipo","Banco 4 fecha apertura cuenta","Cuenta 4 es de","Banco 4 ha obtenido créditos","Banco 4 Monto US$","Casa comercial 1 nombre","Casa comercial 1 año crédito","Casa comercial 1 teléfono","Casa comercial 2 nombre","Casa comercial 2 año crédito","Casa comercial 2 teléfono","Tarjeta de crédito 1 número","Tarjeta de crédito 1 marca","Tarjeta de crédito 1 banco emisor","Tarjeta de crédito 1 titular","Tarjeta de crédito 1 cupo","Tarjeta de crédito 1 fecha emisión","Tarjeta de crédito 2 número","Tarjeta de crédito 2 marca","Tarjeta de crédito 2 banco emisor","Tarjeta de crédito 2 titular","Tarjeta de crédito 2 cupo","Tarjeta de crédito 2 fecha emisión","Tarjeta de crédito 3 número","Tarjeta de crédito 3 marca","Tarjeta de crédito 3 banco emisor","Tarjeta de crédito 3 titular","Tarjeta de crédito 3 cupo","Tarjeta de crédito 3 fecha emisión","Tipo cliente inmobiliario","Tipo de reporte"]
["Dato",{"$f":"Formulario!A4","v":0},{"$f":"Formulario!G4","v":0},{"$f":"Formulario!I4","v":"00:00:00"},{"$f":"Formulario!A7","v":0},{"$f":"Formulario!C7","v":0},{"$f":"Formulario!E7","v":0},{"$f":"Formulario!C8","v":0},{"$f":"Formulario!G8","v":0},{"$f":"Formulario!I7","v":"00:00:00"},{"$f":"Formulario!C9","v":0},{"$f":"Formulario!G9","v":0},{"$f":"Formulario!I8","v":""},{"$f":"Formulario!D10","v":0},{"$f":"Formulario!I9","v":0},{"$f":"Formulario!G10","v":0},{"$f":"Formulario!I10","v":0},{"$f":"Formulario!D11","v":0},{"$f":"Formulario!G11","v":0},{"$f":"Formulario!I11","v":0},{"$f":"Formulario!C12","v":0},{"$f":"Formulario!G12","v":0},{"$f":"Formulario!B14","v":0},{"$f":"Formulario!G14","v":0},{"$f":"Formulario!B15","v":0},{"$f":"Formulario!D15","v":0},{"$f":"Formulario!F15","v":0},{"$f":"Formulario!H15","v":0},{"$f":"Formulario!A17","v":0},{"$f":"Formulario!C17","v":0},{"$f":"Formulario!E17","v":0},{"$f":"Formulario!G17","v":0},{"$f":"Formulario!C18","v":0},{"$f":"Formulario!F18","v":0},{"$f":"Formulario!I18","v":0},{"$f":"Formulario!C19","v":0},{"$f":"Formulario!H19","v":0},{"$f":"Formulario!C20","v":0},{"$f":"Formulario!H20","v":0},{"$f":"Formulario!C21","v":0},{"$f":"Formulario!I21","v":0},{"$f":"Formulario!F21","v":0},{"$f":"Formulario!C23","v":0},{"$f":"Formulario!I23","v":0},{"$f":"Formulario!A25","v":0},{"$f":"Formulario!C25","v":0},{"$f":"Formulario!G25","v":0},{"$f":"Formulario!I26","v":"00:00:00"},{"$f":"Formulario!A27","v":0},{"$f":"Formulario!E27","v":0},{"$f":"Formulario!I27","v":0},{"$f":"Formulario!D28","v":0},{"$f":"Formulario!G28","v":0},{"$f":"Formulario!B29","v":0},{"$f":"Formulario!D29","v":0},{"$f":"Formulario!G29","v":0},{"$f":"Formulario!E30","v":0},{"$f":"Formulario!H30","v":0},{"$f":"Formulario!C31","v":0},{"$f":"Formulario!G31","v":0},{"$f":"Formulario!I33","v":"00:00:00"},{"$f":"Formulario!A34","v":0},{"$f":"Formulario!E34","v":0},{"$f":"Formulario!I34","v":"00:00:00"},{"$f":"Formulario!A37","v":0},{"$f":"Formulario!E37","v":0},{"$f":"Formulario!G37","v":0},{"$f":"Formulario!H37","v":0},{"$f":"Formulario!I37","v":0},{"$f":"Formulario!H38","v":0},{"$f":"Formulario!A39","v":0},{"$f":"Formulario!E39","v":0},{"$f":"Formulario!H39","v":0},{"$f":"Formulario!A41","v":0},{"$f":"Formulario!E41","v":0},{"$f":"Formulario!G37","v":0},{"$f":"Formulario!H41","v":0},{"$f":"Formulario!I41","v":0},{"$f":"Formulario!H42","v":0},{"$f":"Formulario!A43","v":0},{"$f":"Formulario!E43","v":0},{"$f":"Formulario!H43","v":0},{"$f":"Formulario!I45","v":"00:00:00"},{"$f":"Formulario!A46","v":0},{"$f":"Formulario!C46","v":0},{"$f":"Formulario!E46","v":0},{"$f":"Formulario!I46","v":0},{"$f":"Formulario!I47","v":0},{"$f":"Formulario!A48","v":0},{"$f":"Formulario!B48","v":0},{"$f":"Formulario!C48","v":0},{"$f":"Formulario!E48","v":0},{"$f":"Formulario!I48","v":0},{"$f":"Formulario!C49","v":0},{"$f":"Formulario!F49","v":0},{"$f":"Formulario!I49","v":0},{"$f":"Formulario!I50","v":"00:00:00"},{"$f":"Formulario!A51","v":0},{"$f":"Formulario!E51","v":0},{"$f":"Formulario!G51","v":0},{"$f":"Formulario!I51","v":0},{"$f":"Formulario!C52","v":0},{"$f":"Formulario!G52","v":0},{"$f":"Formulario!D53","v":0},{"$f":"Formulario!G53","v":0},{"$f":"Formulario!B54","v":0},{"$f":"Formulario!D54","v":0},{"$f":"Formulario!G54","v":0},{"$f":"Formulario!I56","v":"00:00:00"},{"$f":"Formulario!A57","v":0},{"$f":"Formulario!E57","v":0},{"$f":"Formulario!I57","v":"00:00:00"},{"$f":"Formulario!E61","v":0},{"$f":"Formulario!E62","v":0},{"$f":"Formulario!E63","v":0},{"$f":"Formulario!E64","v":0},{"$f":"Formulario!E65","v":0},{"$f":"Formulario!E66","v":0},{"$f":"Formulario!E67","v":0},{"$f":"Formulario!E68","v":0},{"$f":"Formulario!E69","v":0},{"$f":"Formulario!E70","v":0},{"$f":"Formulario!E71","v":0},{"$f":"Formulario!I61","v":0},{"$f":"Formulario!I62","v":0},{"$f":"Formulario!I63","v":0},{"$f":"Formulario!I64","v":0},{"$f":"Formulario!I65","v":0},{"$f":"Formulario!I66","v":0},{"$f":"Formulario!I67","v":0},{"$f":"Formulario!I69","v":0},{"$f":"Formulario!I71","v":0},{"$f":"Formulario!A74","v":0},{"$f":"Formulario!D74","v":0},{"$f":"Formulario!H74","v":0},{"$f":"Formulario!I74","v":0},{"$f":"Formulario!A75","v":0},{"$f":"Formulario!D75","v":0},{"$f":"Formulario!H75","v":0},{"$f":"Formulario!I75","v":0},{"$f":"Formulario!A78","v":0},{"$f":"Formulario!C78","v":0},{"$f":"Formulario!E78","v":0},{"$f":"Formulario!G78","v":0},{"$f":"Formulario!H78","v":0},{"$f":"Formulario!I78","v":0},{"$f":"Formulario!A79","v":0},{"$f":"Formulario!C79","v":0},{"$f":"Formulario!E79","v":0},{"$f":"Formulario!G79","v":0},{"$f":"Formulario!H79","v":0},{"$f":"Formulario!I79","v":0},{"$f":"Formulario!E82","v":0},{"$f":"Formulario!E83","v":0},{"$f":"Formulario!E84","v":0},{"$f":"Formulario!E85","v":0},{"$f":"Formulario!E86","v":0},{"$f":"Formulario!E87","v":0},{"$f":"Formulario!E88","v":0},{"$f":"Formulario!E89","v":0},{"$f":"Formulario!C90","v":0},{"$f":"Formulario!E90","v":0},{"$f":"Formulario!E91","v":0},{"$f":"Formulario!E92","v":0},{"$f":"Formulario!C93","v":0},{"$f":"Formulario!I82","v":0},{"$f":"Formulario!I83","v":0},{"$f":"Formulario!I84","v":0},{"$f":"Formulario!I85","v":0},{"$f":"Formulario!I86","v":0},{"$f":"Formulario!I88","v":0},{"$f":"Formulario!I89","v":0},{"$f":"Formulario!I90","v":0},{"$f":"Formulario!I91","v":0},{"$f":"Formulario!I92","v":0},{"$f":"Formulario!H93","v":0},{"$f":"Formulario!C95","v":0},{"$f":"Formulario!C96","v":0},{"$f":"Formulario!I96","v":0},{"$f":"Formulario!C97","v":0},{"$f":"Formulario!E97","v":0},{"$f":"Formulario!I97","v":0},{"$f":"Formulario!D98","v":0},{"$f":"Formulario!H98","v":0},{"$f":"Formulario!F99","v":0},{"$f":"Formulario!I99","v":0},{"$f":"Formulario!C100","v":0},{"$f":"Formulario!F100","v":0},{"$f":"Formulario!I100","v":0},{"$f":"Formulario!A103","v":0},{"$f":"Formulario!C103","v":0},{"$f":"Formulario!E103","v":0},{"$f":"Formulario!F103","v":"00:00:00"},{"$f":"Formulario!G103","v":"00:00:00"},{"$f":"Formulario!H103","v":0},{"$f":"Formulario!I103","v":0},{"$f":"Formulario!A104","v":0},{"$f":"Formulario!C104","v":0},{"$f":"Formulario!E104","v":0},{"$f":"Formulario!F104","v":"00:00:00"},{"$f":"Formulario!G104","v":"00:00:00"},{"$f":"Formulario!H104","v":0},{"$f":"Formulario!I104","v":0},{"$f":"Formulario!A105","v":0},{"$f":"Formulario!C105","v":0},{"$f":"Formulario!E105","v":0},{"$f":"Formulario!F105","v":"00:00:00"},{"$f":"Formulario!G105","v":"00:00:00"},{"$f":"Formulario!H105","v":0},{"$f":"Formulario!I105","v":0},{"$f":"Formulario!A106","v":0},{"$f":"Formulario!C106","v":0},{"$f":"Formulario!E106","v":0},{"$f":"Formulario!F106","v":"00:00:00"},{"$f":"Formulario!G106","v":"00:00:00"},{"$f":"Formulario!H106","v":0},{"$f":"Formulario!I106","v":0},{"$f":"Formulario!A108","v":0},{"$f":"Formulario!D108","v":"00:00:00"},{"$f":"Formulario!E108","v":0},{"$f":"Formulario!F108","v":0},{"$f":"Formulario!H108","v":"00:00:00"},{"$f":"Formulario!I108","v":0},{"$f":"Formulario!A110","v":0},{"$f":"Formulario!C110","v":0},{"$f":"Formulario!E110","v":0},{"$f":"Formulario!G110","v":0},{"$f":"Formulario!H110","v":0},{"$f":"Formulario!I110","v":"00:00:00"},{"$f":"Formulario!A111","v":0},{"$f":"Formulario!C111","v":0},{"$f":"Formulario!E111","v":0},{"$f":"Formulario!G111","v":0},{"$f":"Formulario!H111","v":0},{"$f":"Formulario!I111","v":"00:00:00"},{"$f":"Formulario!A112","v":0},{"$f":"Formulario!C112","v":0},{"$f":"Formulario!E112","v":0},{"$f":"Formulario!G112","v":0},{"$f":"Formulario!H112","v":0},{"$f":"Formulario!I112","v":"00:00:00"},{"$f":"Formulario!E4","v":0},{"$f":"Formulario!A2","v":"SOLICITUD DE ANALISIS DE CAPACIDAD DE PAGO"},0,0,0,0]
["Opcion 1",null,null,null,null,null,null,"Cédula",null,null,null,null,null,"Si","Masculino","Menor a 1 año","Soltero/a","Si",null,null,"Sin estudios","Ciencias administrativas y económicas",null,null,null,null,null,null,null,null,null,null,null,null,null,null,"Propia sin hipoteca","Casa",null,null,null,null,"Relación de dependencia con contrato fijo",null,"Empleado privado",true,null,null,null,null,null,null,null,null,null,null,"Menor a 1 año","Menor a 1 año",null,null,null,null,null,null,null,null,null,null,null,null,null,null,null,null,null,null,null,null,null,null,null,null,null,null,null,null,null,"Masculino","Cédula",null,null,null,null,"Empleado privado","Dependencia con contrato fijo",null,null,null,null,"Menor a 1 año",null,null,null,null,null,null,null,null,null,null,null,null,null,null,null,null,null,null,null,null,null,null,{"$f":"DS2-SUM(DI2:DR2)","v":0},null,null,null,null,null,null,{"$f":"DZ2-SUM(DT2:DY2)","v":0},{"$f":"EA2-DS2+DZ2","v":0},null,null,null,null,"Si",null,null,null,"Si",null,null,null,null,null,"Si",null,null,null,null,null,"Si",null,null,null,null,null,null,null,null,null,null,null,{"$f":"SUM(EW2:FG2)-FH2","v":0},null,null,null,null,null,null,null,null,null,{"$f":"SUM(FJ2:FQ2)-FR2","v":0},{"$f":"FH2-FR2-FS2","v":0},null,null,"Negocio personal",null,null,"Propio","Cíclica",null,null,null,null,null,null,null,null,null,"Ahorros",null,"Solicitante","Si",null,null,null,"Ahorros",null,"Solicitante","Si",null,null,null,"Ahorros",null,"Solicitante","Si",null,null,null,"Ahorros",null,"Solicitante","Si",null,null,null,null,null,null,null,null,null,null,"Solicitante",null,null,null,null,null,"Solicitante",null,null,null,null,null,"Solicitante"]
["Opcion 2",null,null,null,null,null,null,"Pasaporte",null,null,null,null,null,"No","Femenino","Entre 1 y 2 años","Casado/a","No",null,null,"Primaria","Ingeniería y ciencias exactas",null,null,null,null,null,null,null,null,null,null,null,null,null,null,"Propia con hipoteca","Departamento",null,null,null,null,"Relación dependencia con contrato temporal",null,"Empleado público",true,null,null,null,null,null,null,null,null,null,null,"Menor a 2 años","Menor a 2 años",null,null,null,null,null,null,null,null,null,null,null,null,null,null,null,null,null,null,null,null,null,null,null,null,null,null,null,null,null,"Femenino","Pasaporte",null,null,null,null,"Empleado público","Dependencia con contrato temporal",null,null,null,null,"Menor a 2 años",null,null,null,null,null,null,null,null,null,null,null,null,null,null,null,null,null,null,null,null,null,null,null,null,null,null,null,null,null,null,null,null,null,null,null,"No",null,null,null,"No",null,null,null,null,null,"No",null,null,null,null,null,"No",null,null,null,null,null,null,null,null,null,null,null,null,null,null,null,null,null,null,null,null,null,null,null,null,null,"Sociedad con familiares",null,null,"Arrendado","Recurrente",null,null,null,null,null,null,null,null,null,"Corriente",null,"Conyuge","No",null,null,null,"Corriente",null,"Conyuge","No",null,null,null,"Corriente",null,"Conyuge","No",null,null,null,"Corriente",null,"Conyuge","No",null,null,null,null,null,null,null,null,null,null,"Conyuge",null,null,null,null,null,"Conyuge",null,null,null,null,null,"Conyuge"]
["Opcion 3",null,null,null,null,null,null,null,null,null,null,null,null,null,null,"Entre 3 y 5 años","Viudo/a",null,null,null,"Secundaria","Arquitectura y afines",null,null,null,null,null,null,null,null,null,null,null,null,null,null,"Arrendada","Villa",null,null,null,null,"Independiente / Negocio propio",null,"Independiente",false,null,null,null,null,null,null,null,null,null,null,"Entre 2 y 5 años","Entre 2 y 5 años",null,null,null,null,null,null,null,null,null,null,null,null,null,null,null,null,null,null,null,null,null,null,null,null,null,null,null,null,null,null,null,null,null,null,null,"Independiente","Independiente / Negocio propio",null,null,null,null,"Entre 2 y 5 años",null,null,null,null,null,null,null,null,null,null,null,null,null,null,null,null,null,null,null,null,null,null,null,null,null,null,null,null,null,null,null,null,null,null,null,null,null,null,null,null,null,null,null,null,null,null,null,null,null,null,null,null,null,null,null,null,null,null,null,null,null,null,null,null,null,null,null,null,null,null,null,null,null,null,null,null,null,"Sociedad con terceros",null,null,"De un familiar",null,null,null,null,null,null,null,null,null,null,null,null,"Compartida",null,null,null,null,null,null,"Compartida",null,null,null,null,null,null,"Compartida",null,null,null,null,null,null,"Compartida"]
["Opcion 4",null,null,null,null,null,null,null,null,null,null,null,null,null,null,"Entre 6 y 10 años","Divorciado/a",null,null,null,"Formación intermedia (técnica)","Ciencias sociales",null,null,null,null,null,null,null,null,null,null,null,null,null,null,"Prestada","Departamento dúplex",null,null,null,null,"Ama de casa",null,"Rentista",false,null,null,null,null,null,null,null,null,null,null,"Entre 6 y 10 años","Entre 6 y 10 años",null,null,null,null,null,null,null,null,null,null,null,null,null,null,null,null,null,null,null,null,null,null,null,null,null,null,null,null,null,null,null,null,null,null,null,"Rentista","Ama de casa",null,null,null,null,"Entre 6 y 10 años",null,null,null,null,null,null,null,null,null,null,null,null,null,null,null,null,null,null,null,null,null,null,null,null,null,null,null,null,null,null,null,null,null,null,null,null,null,null,null,null,null,null,null,null,null,null,null,null,null,null,null,null,null,null,null,null,null,null,null,null,null,null,null,null,null,null,null,null,null,null,null,null,null,null,null,null,null,"Sociedad con familiares y terceros",null,null,"De un socio"]
["Opcion 5",null,null,null,null,null,null,null,null,null,null,null,null,null,null,"Más de 10 años","Unión libre",null,null,null,"Superior","Profesional de la salud (médicos, biólogos, veterinarios…)",null,null,null,null,null,null,null,null,null,null,null,null,null,null,"Vive con parientes","Vivienda unifamiliar",null,null,null,null,"Estudiante",null,"Jubilado",false,null,null,null,null,null,null,null,null,null,null,"Más de 10 años","Más de 10 años",null,null,null,null,null,null,null,null,null,null,null,null,null,null,null,null,null,null,null,null,null,null,null,null,null,null,null,null,null,null,null,null,null,null,null,"Jubilado","Estudiante",null,null,null,null,"Más de 10 años",null,null,null,null,null,null,null,null,null,null,null,null,null,null,null,null,null,null,null,null,null,null,null,null,null,null,null,null,null,null,null,null,null,null,null,null,null,null,null,null,null,null,null,null,null,null,null,null,null,null,null,null,null,null,null,null,null,null,null,null,null,null,null,null,null,null,null,null,null,null,null,null,null,null,null,null,null,null,null,null,"Prestado"]
["Opcion 6",null,null,null,null,null,null,null,null,null,null,null,null,null,null,null,null,null,null,null,"Postgrado","Ciencias de la educación",null,null,null,null,null,null,null,null,null,null,null,null,null,null,"Otros",null,null,null,null,null,"No labora",null,"Remesas del exterior",false,null,null,null,null,null,null,null,null,null,null,null,null,null,null,null,null,null,null,null,null,null,null,null,null,null,null,null,null,null,null,null,null,null,null,null,null,null,null,null,null,null,null,null,null,null,null,null,"Remesas del exterior","No labora"]
["Opcion 7",null,null,null,null,null,null,null,null,null,null,null,null,null,null,null,null,null,null,null,null,"Derecho"]
["Opcion 8",null,null,null,null,null,null,null,null,null,null,null,null,null,null,null,null,null,null,null,null,"Periodistas y comunicadores"]
["Opcion 9",null,null,null,null,null,null,null,null,null,null,null,null,null,null,null,null,null,null,null,null,"Policías, militares u otros miembros de la fuerza pública"]
[null,null,null,null,null,null,null,null,null,null,null,null,null,null,null,null,null,null,null,null,null,"Agricultura, ganadería y afines"]